bitfinex-derivatives/quotes_ETHF0:USTF0_20250427
["timestamp","ask_amount","ask_price","bid_price","bid_amount"]
[1745718232797,14.01251177,1818.3,1818.2,6.30152]
[1745718233799,14.01251177,1818.3,1818.2,5.202]
[1745718233996,23.68431177,1818.3,1818.2,5.202]
[1745718234895,28.68431177,1818.3,1817.7,61.728]
[1745718235103,3.2078,1817.9,1817.6,5.201]
[1745718235304,15.0,1817.8,1817.6,6.30088]
[1745718235900,15.0,1817.8,1817.6,1.09988]
[1745718236102,15.0,1817.8,1817.6,6.30088]
[1745718236605,15.0,1817.8,1817.7,1.09982]
[1745718237196,5.3282,1817.8,1817.7,6.94762]
[1745718237600,3.2078,1818.1,1817.8,1.09971]
[1745718237802,5.3282,1818.0,1817.9,1.0997]
[1745718238297,5.3282,1818.0,1817.7,5.8478]
[1745718238495,3.2078,1818.3,1817.8,2.74942]
[1745718238696,5.3139,1818.2,1818.1,1.09953]
[1745718239000,9.8897,1818.4,1818.2,1.09949]
[1745718239299,5.3139,1818.3,1818.2,1.09949]
[1745718239698,5.3139,1818.3,1818.1,5.202]
[1745718239895,5.3139,1818.3,1818.2,1.09952]
[1745718240098,10.63761177,1818.3,1818.2,1.09952]
[1745718240601,10.63761177,1818.3,1818.1,5.202]
[1745718240902,10.63761177,1818.3,1818.1,6.30156]
[1745718241102,10.63761177,1818.3,1818.2,1.09952]
[1745718241404,5.32371177,1818.3,1818.2,9.94722]
[1745718241599,5.32371177,1818.3,1818.2,19.76192]
[1745718242297,11.00591177,1818.3,1818.2,6.73942]
[1745718242704,11.00591177,1818.3,1818.2,1.09952]
[1745718243399,11.00591177,1818.3,1818.2,6.73942]
[1745718243702,5.32371177,1818.3,1818.2,6.73942]
[1745718244105,5.32371177,1818.3,1818.2,14.76192]
[1745718244602,7.09828236,1818.4,1818.3,1.09946]
[1745718244807,5.141,1818.6,1818.3,1.09946]
[1745718245504,5.141,1818.6,1818.1,5.202]
[1745718245700,7.9963,1818.5,1818.1,6.30154]
[1745718245893,7.9963,1818.5,1818.1,6.30158]
[1745718246095,7.9963,1818.5,1818.1,5.202]
[1745718246404,7.9963,1818.5,1818.2,1.09948]
[1745718246597,7.9963,1818.5,1818.3,1.09946]
[1745718247106,4.7885,1818.5,1818.4,1.0994]
[1745718247501,5.141,1818.6,1818.5,1.09934]
[1745718247707,5.141,1818.6,1818.5,6.28034]
[1745718248002,3.2078,1818.7,1818.5,6.28034]
[1745718248305,8.53151177,1818.7,1818.6,1.09928]
[1745718249511,5.32371177,1818.7,1818.6,6.55908]
[1745718250003,5.32371177,1818.7,1818.6,6.55461001]
[1745718250209,5.32371177,1818.7,1818.6,11.55461001]
[1745718250408,5.32371177,1818.7,1818.6,11.97004626]
[1745718251209,5.32371177,1818.7,1818.5,5.181]
[1745718251509,5.32371177,1818.7,1818.6,1.09928]
[1745718251713,5.32371177,1818.7,1818.5,5.181]
[1745718252007,5.32371177,1818.7,1818.5,6.28034]
[1745718252201,5.0661,1818.6,1818.5,5.181]
[1745718254107,10.0661,1818.6,1818.5,5.181]
[1745718254303,14.53752,1818.6,1818.3,5.181]
[1745718254509,3.2078,1818.5,1818.2,5.181]
[1745718255208,3.2078,1818.5,1817.9,64.9288]
[1745718255209,3.2078,1818.3,1817.9,61.721]
[1745718255411,3.2078,1818.1,1817.7,19.3606801]
[1745718255612,3.2078,1817.9,1817.7,19.3606801]
[1745718256206,3.2078,1817.9,1817.7,18.2608801]
[1745718256406,3.2078,1817.9,1817.7,19.3606701]
[1745718258118,3.2078,1817.9,1817.7,1.09979]
[1745718258319,3.2078,1817.9,1817.6,6.28084]
[1745718258620,3.2078,1817.7,1817.6,5.181]
[1745718258819,3.2078,1817.7,1817.4,1.09999]
[1745718259119,4.8276,1817.6,1817.4,1.09999]
[1745718259418,3.2078,1817.5,1817.4,1.09999]
[1745718260915,3.2078,1817.5,1817.3,6.28105]
[1745718261119,3.2078,1817.5,1817.3,5.181]
[1745718261517,3.2078,1817.5,1817.3,6.28105]
[1745718261921,4.8276,1817.6,1817.3,6.28105]
[1745718262110,8.0354,1817.6,1817.3,6.28105]
[1745718262710,8.0354,1817.6,1817.3,5.181]
[1745718262912,4.8716,1817.5,1817.3,5.181]
[1745718263219,3.2078,1817.4,1817.3,5.181]
[1745718265017,9.0686,1817.4,1817.3,5.181]
[1745718266121,14.0686,1817.4,1816.7,3.2078]
[1745718266315,3.2078,1817.2,1816.7,8.3908]
[1745718266523,15.3061,1817.1,1816.9,1.10031]
[1745718266728,15.3061,1817.1,1816.8,1.10032]
[1745718267020,15.3061,1817.1,1816.7,15.12881]
[1745718267819,15.3061,1817.1,1816.7,5.183]
[1745718267820,3.2078,1816.9,1816.7,5.183]
[1745718268009,5.4987,1816.8,1816.4,6.28359]
[1745718268320,3.2078,1816.7,1816.4,6.28359]
[1745718268518,5.4987,1816.6,1816.4,6.28359]
[1745718268714,5.4987,1816.6,1816.4,5.183]
[1745718269012,15.2993,1816.6,1816.4,5.183]
[1745718269616,3.2078,1816.5,1816.4,5.183]
[1745718269917,9.1175,1816.5,1816.1,5.183]
[1745718270325,9.1175,1816.5,1816.3,1.10065]
[1745718270722,9.1175,1816.5,1816.2,6.51]
[1745718270925,5.9097,1816.5,1816.2,5.4093]
[1745718271119,3.2078,1816.7,1816.3,3.2078]
[1745718271319,9.1175,1816.7,1816.6,1.10049]
[1745718271518,5.9097,1816.7,1816.6,1.10049]
[1745718271923,5.9097,1816.7,1816.6,6.96929]
[1745718272319,7.67922,1817.1,1816.7,1.10041]
[1745718272617,5.6058,1817.0,1816.6,5.8688]
[1745718272830,5.6058,1817.0,1816.7,1.10043]
[1745718273123,3.2078,1817.1,1816.9,1.10029]
[1745718273426,3.2078,1817.1,1816.9,6.28529]
[1745718273624,5.6058,1817.1,1817.0,6.96905]
[1745718273824,5.6058,1817.3,1817.0,5.8688]
[1745718274027,5.6058,1817.3,1817.0,10.5496]
[1745718274425,5.6058,1817.3,1817.0,11.64984]
[1745718274623,5.6058,1817.3,1817.0,10.5496]
[1745718275028,5.6058,1817.3,1817.0,11.64982]
[1745718275227,5.6058,1817.3,1817.0,11.64985]
[1745718276427,5.6058,1817.3,1817.1,1.10018]
[1745718276726,5.6058,1817.3,1817.0,11.64981]
[1745718276923,5.6058,1817.3,1817.0,10.5496]
[1745718277123,5.6058,1817.3,1817.1,1.10017]
[1745718277320,3.55878195,1817.4,1817.0,13.7574]
[1745718277822,5.6121,1817.3,1817.0,14.8576]
[1745718278132,5.6121,1817.3,1817.0,9.0766]
[1745718278327,3.2078,1817.2,1816.7,3.2078]
[1745718278520,10.3039,1817.1,1816.7,8.906]
[1745718278828,10.3039,1817.1,1816.8,1.10035]
[1745718279228,10.3039,1817.1,1816.9,1.10027]
[1745718279522,10.3039,1817.1,1817.0,1.10025]
[1745718279523,5.6121,1817.1,1817.0,1.10025]
[1745718279727,5.6121,1817.1,1816.9,1.10027]
[1745718280027,5.6121,1817.1,1817.0,1.10025]
[1745718281924,5.6121,1817.1,1817.0,6.26525]
[1745718282324,5.6121,1817.1,1817.0,5.165]
[1745718282833,5.6121,1817.1,1816.7,8.3738]
[1745718283017,13.0243,1817.0,1816.7,8.3738]
[1745718283220,5.6,1816.9,1816.7,8.3738]
[1745718283632,3.2078,1816.8,1816.5,1.10052]
[1745718283831,5.6231,1816.7,1816.4,1.10059]
[1745718284027,3.2078,1816.6,1816.3,11.04845]
[1745718284334,5.6231,1816.5,1816.3,5.166]
[1745718284631,5.6231,1816.5,1816.4,1.10061]
[1745718285925,5.6231,1816.5,1816.3,6.26663]
[1745718286132,5.6231,1816.5,1816.4,1.10061]
[1745718286332,5.6231,1816.5,1816.3,5.166]
[1745718286530,5.6231,1816.5,1816.4,1.10061]
[1745718287533,5.6231,1816.5,1816.3,5.166]
[1745718287838,5.6231,1816.5,1816.3,6.26665]
[1745718288031,3.2078,1816.4,1816.3,5.166]
[1745718288334,3.2078,1816.4,1815.8,70.1248]
[1745718288528,3.2078,1816.2,1816.0,1.10083]
[1745718288727,5.8266,1816.1,1816.0,1.10083]
[1745718293030,5.8266,1816.1,1815.8,66.917]
[1745718293236,5.8266,1816.1,1815.9,1.10088]
[1745718293634,5.8266,1816.1,1816.0,1.10085]
[1745718294232,3.2078,1816.4,1816.0,1.10081]
[1745718294436,5.5157,1816.3,1816.1,1.10079]
[1745718295541,5.5157,1816.3,1816.2,1.10073]
[1745718295736,8.7235,1816.6,1816.5,1.10055]
[1745718296641,5.5157,1816.6,1816.5,1.10055]
[1745718298440,9.28282,1816.9,1816.7,1.10043]
[1745718298636,5.5988,1816.8,1816.4,5.8214]
[1745718298842,5.5988,1816.8,1816.6,1.10045]
[1745718299641,5.5988,1816.8,1816.5,1.10051]
[1745718299842,5.5988,1816.8,1816.5,5.3589]
[1745718300347,5.5988,1816.8,1816.6,1.10046]
[1745718301150,5.5988,1816.8,1816.7,1.10043]
[1745718301542,3.2078,1817.0,1816.9,1.10031]
[1745718301844,14.0599,1817.3,1816.9,1.10027]
[1745718302044,14.0599,1817.3,1817.0,5.167]
[1745718302345,14.0599,1817.3,1817.1,1.10018]
[1745718302740,14.0599,1817.3,1817.2,1.10013]
[1745718302942,9.0221,1817.3,1817.2,1.10013]
[1745718303148,6.76658195,1817.5,1817.4,1.10001]
[1745718303441,12.53638195,1817.5,1817.4,1.10001]
[1745718304535,12.53638195,1817.5,1817.1,3.2078]
[1745718304748,17.67128195,1817.5,1817.1,4.30799]
[1745718304942,17.67128195,1817.5,1817.0,6.2672]
[1745718305143,3.2078,1817.3,1816.9,10.2337]
[1745718305349,5.7167,1817.2,1816.9,1.10031]
[1745718305749,5.7167,1817.2,1817.0,1.10024]
[1745718306049,5.7167,1817.2,1816.8,10.5669]
[1745718306248,8.2097,1817.1,1816.6,1.10046]
[1745718306454,3.2078,1816.9,1816.6,5.166]
[1745718306750,5.0046,1816.8,1816.6,5.166]
[1745718306947,10.7213,1816.8,1816.6,5.166]
[1745718307147,3.2078,1816.7,1816.2,15.5986]
[1745718307339,10.7939,1816.6,1816.2,10.5659]
[1745718307542,10.7939,1816.6,1816.3,1.10064]
[1745718307955,10.7939,1816.6,1816.2,10.5659]
[1745718308152,10.7939,1816.6,1816.4,1.10058]
[1745718308848,3.2078,1816.5,1816.2,6.2667]
[1745718309153,5.5266,1816.4,1816.3,1.10067]
[1745718311357,5.5266,1816.4,1816.3,7.02707]
[1745718311749,5.0772,1816.6,1816.3,5.9264]
[1745718312053,5.893,1816.6,1816.3,9.1342]
[1745718312353,5.893,1816.6,1816.3,7.02705]
[1745718312552,5.893,1816.6,1816.4,5.9264]
[1745718312753,5.893,1816.6,1816.2,6.2667]
[1745718313052,5.893,1816.6,1816.2,11.0924]
[1745718313353,3.2078,1816.5,1816.2,5.166]
[1745718313654,11.0656,1816.4,1816.2,5.166]
[1745718313956,3.2078,1816.3,1815.9,5.147]
[1745718314260,5.9282,1816.2,1815.9,5.147]
[1745718314555,3.2078,1816.1,1815.6,6.2481]
[1745718314754,9.136,1816.0,1815.7,1.10104]
[1745718314945,13.9235,1816.0,1815.7,1.10104]
[1745718315143,13.9235,1816.0,1815.8,1.10096]
[1745718315456,13.9235,1816.0,1815.9,1.10091]
[1745718315856,10.7157,1816.0,1815.9,1.10091]
[1745718316356,10.7157,1816.0,1815.6,5.147]
[1745718316656,4.9923,1815.9,1815.6,6.24807]
[1745718316843,5.9282,1815.8,1815.6,6.24807]
[1745718317149,9.136,1815.8,1815.6,5.147]
[1745718317352,9.136,1815.8,1815.3,80.04095204]
[1745718317548,9.136,1815.8,1815.5,1.10114]
[1745718318155,3.2078,1815.6,1815.3,5.147]
[1745718318350,4.9923,1815.9,1815.3,5.147]
[1745718318351,3.2078,1815.4,1815.3,5.147]
[1745718318552,3.2078,1815.4,1814.9,5.1566]
[1745718318754,10.6066,1815.3,1815.1,1.10138]
[1745718319256,3.2078,1815.2,1814.9,6.24949]
[1745718319445,5.5773,1815.1,1815.0,1.10146]
[1745718319752,3.2078,1815.2,1815.1,1.1014]
[1745718319948,3.2078,1815.8,1815.5,1.10111]
[1745718320145,3.2078,1815.8,1815.0,5.8236]
[1745718320146,3.2078,1815.6,1815.4,6.24917]
[1745718320346,5.7724,1815.5,1815.4,6.24922]
[1745718320658,5.7724,1815.5,1815.4,5.148]
[1745718321350,5.7724,1815.5,1815.4,6.24922]
[1745718321653,5.7724,1815.5,1815.4,5.148]
[1745718324959,5.7724,1815.5,1815.4,6.24922]
[1745718325254,3.2078,1815.6,1815.4,5.148]
[1745718325452,5.9232,1815.5,1815.2,1.1013]
[1745718325663,5.9232,1815.5,1815.0,14.1804]
[1745718325846,5.9232,1815.5,1815.1,1.10137]
[1745718326159,5.9173371,1815.5,1815.1,1.10137]
[1745718326353,3.2078,1815.2,1815.0,5.149]
[1745718326560,9.9499,1815.1,1814.7,6.25061]
[1745718326949,9.9499,1815.1,1814.7,6.25064]
[1745718327456,9.9499,1815.1,1814.7,5.149]
[1745718327663,9.9499,1815.1,1814.9,1.10148]
[1745718328464,9.9499,1815.1,1814.8,7.02254]
[1745718328659,3.2078,1815.0,1814.7,5.149]
[1745718328859,9.9499,1815.1,1814.7,5.149]
[1745718328860,3.2078,1814.8,1814.7,5.149]
[1745718329066,3.2078,1814.8,1814.5,5.921]
[1745718329257,5.5052,1814.7,1814.5,5.921]
[1745718329564,5.5052,1814.7,1814.4,11.08168]
[1745718329565,3.2078,1814.6,1814.4,5.15]
[1745718329767,5.7736,1814.5,1814.4,5.15]
[1745718330065,5.7736,1814.5,1814.1,0.0086]
[1745718330265,3.2078,1814.4,1814.1,5.1586]
[1745718330470,5.7736,1814.3,1814.1,5.15]
[1745718331461,5.7736,1814.3,1814.1,6.25199]
[1745718331761,9.9581,1814.6,1814.1,5.15]
[1745718331762,4.9476,1814.6,1814.1,5.15]
[1745718332065,3.2078,1814.9,1814.8,1.10158]
[1745718332253,3.2078,1814.9,1814.7,6.25161]
[1745718332457,3.2078,1814.9,1814.7,5.15]
[1745718332766,5.3686,1814.8,1814.7,6.25164]
[1745718333058,3.2078,1814.9,1814.7,5.15]
[1745718333264,5.3686,1814.8,1814.7,5.15]
[1745718333667,5.3686,1814.8,1814.3,11.0599]
[1745718333868,5.3686,1814.8,1814.4,5.9089]
[1745718334168,3.2078,1814.7,1814.6,1.10169]
[1745718334371,3.2078,1814.7,1814.5,1.10172]
[1745718334563,3.2078,1814.7,1814.6,5.9089]
[1745718335771,3.2078,1814.7,1814.3,6.25285]
[1745718335971,5.5121,1814.6,1814.4,5.9142]
[1745718336271,5.5121,1814.6,1814.2,6.0863]
[1745718336474,3.2078,1814.4,1814.2,5.9142]
[1745718336768,5.5121,1814.3,1814.1,5.151]
[1745718336972,5.5121,1814.3,1814.1,6.25299]
[1745718337166,8.1762,1814.6,1814.2,5.9142]
[1745718337363,8.1762,1814.6,1814.2,11.0699]
[1745718337568,3.2078,1814.6,1814.4,1.10178]
[1745718337769,3.2078,1814.6,1814.5,7.01596]
[1745718337964,3.2078,1814.6,1814.5,12.14696]
[1745718338873,3.2078,1814.6,1814.5,11.0452]
[1745718339264,3.2078,1814.6,1814.5,12.14696]
[1745718339666,3.2078,1814.6,1814.5,11.0452]
[1745718339867,3.2078,1814.6,1814.5,5.131]
[1745718340072,3.2078,1814.6,1814.3,8.9533]
[1745718340273,5.4988,1814.5,1814.4,6.8473]
[1745718340680,5.4988,1814.5,1814.4,5.7455]
[1745718340881,5.4988,1814.5,1814.2,10.2867]
[1745718341288,10.6314,1814.5,1814.2,11.38863]
[1745718341478,10.6314,1814.5,1814.4,1.10182]
[1745718341479,5.4988,1814.5,1814.4,1.10182]
[1745718341983,3.2078,1814.7,1814.5,1.10171]
[1745718342382,3.2078,1814.7,1814.4,1.10179]
[1745718342578,5.6572,1814.6,1814.3,6.84735]
[1745718342880,5.6572,1814.6,1814.2,5.131]
[1745718343180,12.8531,1814.5,1814.2,5.131]
[1745718343385,5.6572,1814.4,1814.0,8.7742]
[1745718343888,3.2078,1814.2,1813.9,5.132]
[1745718344186,3.2078,1814.0,1813.6,0.0086]
[1745718344487,5.6572,1813.9,1813.8,1.10219]
[1745718344686,5.6572,1813.9,1813.7,1.10222]
[1745718344985,5.6572,1813.9,1813.6,5.9256]
[1745718344986,5.6572,1813.9,1813.8,1.10219]
[1745718345285,5.6572,1813.9,1813.7,1.10223]
[1745718345889,5.6572,1813.9,1813.6,7.03647]
[1745718346788,5.6572,1813.9,1813.6,7.0279]
[1745718346991,10.7617,1813.9,1813.6,7.0279]
[1745718347290,8.9631,1813.8,1813.3,5.1355]
[1745718347490,13.8853,1813.8,1813.5,1.10235]
[1745718347792,13.8853,1813.8,1813.4,1.11103]
[1745718347984,13.8853,1813.8,1813.4,5.3682]
[1745718348387,8.9631,1813.8,1813.5,1.10234]
[1745718348690,8.9631,1813.8,1813.6,5.3682]
[1745718348985,8.9631,1813.8,1813.3,0.0086]
[1745718349191,3.2078,1813.6,1813.3,0.0086]
[1745718349485,5.7998,1813.5,1813.3,0.0086]
[1745718349692,8.0204,1813.4,1813.3,0.0086]
[1745718349876,8.0204,1813.4,1813.0,1.10264]
[1745718350077,3.2078,1813.2,1812.9,6.47089]
[1745718350277,5.7998,1813.1,1812.8,5.0157]
[1745718350488,5.7998,1813.1,1812.7,11.60403]
[1745718350693,5.7998,1813.1,1812.8,1.10277]
[1745718350883,3.2078,1813.2,1812.7,10.5098]
[1745718351086,5.1792,1813.3,1813.0,1.10263]
[1745718351280,5.1792,1813.3,1813.2,1.10255]
[1745718351484,5.1792,1813.3,1813.1,5.0164]
[1745718351893,5.1792,1813.3,1812.9,5.0164]
[1745718351894,3.2078,1813.2,1812.9,5.0164]
[1745718352192,3.2078,1813.4,1813.2,1.10254]
[1745718352492,3.2078,1813.4,1813.3,5.0164]
[1745718352893,3.2078,1813.4,1813.1,5.134]
[1745718353193,3.2078,1813.4,1812.8,8.2235]
[1745718353194,5.1792,1813.3,1812.8,8.2235]
[1745718353392,5.1792,1813.3,1813.0,1.10266]
[1745718353393,3.2078,1813.2,1813.0,1.10266]
[1745718353586,10.3698,1813.3,1813.0,1.10266]
[1745718353587,3.2078,1813.4,1813.2,1.10255]
[1745718353992,3.2078,1813.4,1813.3,4.9859]
[1745718355591,3.2078,1813.4,1813.0,3.2078]
[1745718355893,3.2078,1813.4,1812.9,5.134]
[1745718355894,5.1778,1813.3,1812.9,6.23671]
[1745718356095,5.1778,1813.3,1813.0,4.9859]
[1745718356397,5.1778,1813.3,1813.0,6.08856]
[1745718356592,5.1778,1813.3,1813.1,1.10259]
[1745718356799,3.2078,1813.6,1813.4,1.10241]
[1745718357098,3.2078,1813.6,1813.5,6.49737]
[1745718357992,9.7698,1814.0,1813.7,1.1022]
[1745718357993,3.2078,1813.9,1813.7,1.1022]
[1745718358199,8.252,1813.9,1813.8,5.395]
[1745718359700,8.252,1813.9,1813.6,1.10229]
[1745718359902,8.252,1813.9,1813.5,5.3449]
[1745718360096,3.2078,1813.7,1813.3,5.135]
[1745718360399,3.2078,1813.5,1812.7,0.0086]
[1745718360590,3.2078,1813.0,1812.7,0.0086]
[1745718360795,5.2062,1812.9,1812.7,0.0086]
[1745718360995,15.3492,1812.9,1812.7,0.0086]
[1745718361297,3.2078,1812.8,1812.7,0.0086]
[1745718361498,8.414,1812.8,1812.7,0.0086]
[1745718361901,5.2062,1812.8,1812.7,1.11146]
[1745718362999,3.2078,1813.2,1812.7,0.0086]
[1745718363201,5.4991,1813.1,1812.9,1.10271]
[1745718363502,5.4991,1813.1,1813.0,1.10268]
[1745718363700,5.4991,1813.1,1812.8,9.8535]
[1745718364005,5.4991,1813.1,1812.9,1.1027]
[1745718364299,5.4991,1813.1,1813.0,1.10268]
[1745718364708,5.4991,1813.1,1812.9,6.31619]
[1745718365300,3.2078,1813.2,1812.9,5.2135]
[1745718365705,3.2078,1813.2,1813.1,1.10261]
[1745718366806,3.2078,1813.2,1812.9,5.2135]
[1745718367102,3.2078,1813.0,1812.8,5.135]
[1745718367296,5.1333,1813.1,1812.8,5.135]
[1745718367500,5.1333,1812.9,1812.8,5.135]
[1745718367808,5.1333,1812.9,1812.8,6.2378]
[1745718368199,5.1333,1812.9,1812.8,10.3203]
[1745718368600,5.1333,1812.9,1812.8,11.4231]
[1745718368907,5.1333,1812.9,1812.8,10.3203]
[1745718369311,5.1333,1812.9,1812.7,0.0086]
[1745718369607,4.9562,1812.8,1812.7,0.0086]
[1745718369905,8.164,1812.8,1812.7,0.0086]
[1745718370211,16.886,1812.8,1812.7,0.0086]
[1745718370507,22.78409906,1812.8,1812.1,1.10322]
[1745718370703,3.2078,1812.4,1812.2,1.10314]
[1745718370908,3.2078,1812.6,1812.3,1.10305]
[1745718371108,3.2078,1812.6,1812.2,1.10314]
[1745718371408,3.2078,1812.4,1812.1,6.31039]
[1745718371605,3.2078,1812.4,1812.0,6.21926]
[1745718371807,3.2078,1812.4,1812.0,5.116]
[1745718372004,3.2078,1812.4,1812.2,1.10314]
[1745718372814,3.2078,1812.4,1812.1,5.0705]
[1745718373016,3.2078,1812.4,1812.3,1.1031]
[1745718373812,3.2078,1812.4,1812.2,1.10312]
[1745718374013,8.1716,1812.6,1812.0,6.21926]
[1745718374214,3.2078,1812.4,1812.0,5.116]
[1745718374411,9.9489,1812.3,1812.0,5.116]
[1745718374612,9.9489,1812.3,1812.0,6.21925]
[1745718374806,9.9489,1812.3,1812.0,11.28975]
[1745718375315,9.9489,1812.3,1812.0,10.1865]
[1745718375614,9.9489,1812.3,1812.0,5.116]
[1745718376313,5.1669,1812.2,1812.0,5.116]
[1745718376513,3.2078,1812.2,1811.8,6.16938]
[1745718376711,5.4797,1812.1,1811.9,5.066]
[1745718376910,5.4797,1812.1,1811.8,1.10338]
[1745718377211,5.4797,1812.1,1811.8,1.1034]
[1745718377515,5.4797,1812.1,1811.7,19.46612]
[1745718377715,5.4797,1812.1,1811.8,1.10339]
[1745718378015,3.2078,1812.0,1811.7,16.25835]
[1745718378210,5.1298,1811.9,1811.7,16.25835]
[1745718378511,5.1298,1811.9,1811.7,16.25833]
[1745718378714,5.1298,1811.9,1811.8,1.10341]
[1745718378902,5.1298,1811.9,1811.7,16.25832]
[1745718380011,8.3376,1811.9,1811.3,3.2078]
[1745718380314,3.2078,1811.7,1811.3,8.3556]
[1745718380507,5.1298,1811.6,1811.3,8.3556]
[1745718380710,5.1298,1811.6,1811.4,1.10362]
[1745718380915,5.1298,1811.6,1811.5,5.1478]
[1745718381207,5.1298,1811.6,1811.2,11.27816]
[1745718381414,5.1298,1811.6,1811.3,1.10366]
[1745718381627,5.1298,1811.6,1811.4,5.2782]
[1745718381911,5.1298,1811.6,1811.2,6.22173]
[1745718382313,5.1298,1811.6,1811.3,6.3819]
[1745718382510,5.1298,1811.6,1811.4,5.2782]
[1745718383520,5.1298,1811.6,1811.2,5.118]
[1745718383716,5.1298,1811.6,1811.3,1.10369]
[1745718383910,5.1298,1811.6,1811.2,13.604]
[1745718384518,5.1298,1811.6,1811.3,1.10366]
[1745718384720,5.1298,1811.6,1811.4,1.10364]
[1745718385223,5.1298,1811.6,1811.3,1.10366]
[1745718385417,5.1298,1811.6,1811.4,4.946]
[1745718385619,5.1298,1811.6,1811.4,6.04965]
[1745718386126,5.1298,1811.6,1811.2,5.118]
[1745718386422,3.2078,1811.3,1810.9,5.119]
[1745718386723,3.2078,1811.0,1810.5,3.2078]
[1745718386916,5.1907,1810.9,1810.5,3.2078]
[1745718387116,3.2078,1810.8,1810.3,6.43042]
[1745718387418,5.3641,1810.7,1810.3,9.6382]
[1745718387721,5.3641,1810.7,1810.3,8.5339]
[1745718388124,10.2883,1810.7,1810.3,9.63822]
[1745718388326,3.2078,1810.6,1810.1,4.31222]
[1745718388518,5.3641,1810.5,1810.2,1.10438]
[1745718388718,5.3641,1810.5,1810.2,5.3261]
[1745718389428,5.3641,1810.5,1810.1,3.2078]
[1745718389621,3.2078,1810.3,1809.8,11.5507]
[1745718389819,5.3641,1810.5,1809.8,13.6539]
[1745718389820,3.2078,1810.5,1809.8,13.6539]
[1745718390027,3.2078,1810.3,1810.0,1.10448]
[1745718390327,5.4706,1810.2,1810.1,6.44534]
[1745718390528,5.4706,1810.2,1809.9,6.44544]
[1745718390728,5.4706,1810.2,1810.0,1.1045]
[1745718390923,5.4706,1810.2,1810.1,5.3409]
[1745718391119,5.4706,1810.2,1810.0,5.121]
[1745718393921,5.4706,1810.2,1810.1,5.3648]
[1745718394122,3.2078,1810.3,1810.1,5.3648]
[1745718394317,3.2078,1810.5,1810.1,13.5726]
[1745718394523,4.9242,1810.7,1809.8,5.1554]
[1745718394524,3.2078,1810.4,1809.8,5.1554]
[1745718394719,3.2078,1810.2,1809.7,67.046]
[1745718394919,3.2078,1810.0,1809.8,5.3648]
[1745718395123,4.9418,1809.9,1809.8,5.3648]
[1745718395924,4.9418,1809.9,1809.7,5.122]
[1745718396233,4.9418,1809.9,1809.7,10.4868]
[1745718396427,4.9418,1809.9,1809.7,11.59146]
[1745718396638,3.2078,1810.2,1809.7,10.4868]
[1745718396820,3.2078,1810.2,1810.0,1.10449]
[1745718397129,3.2078,1810.2,1810.1,6.51444]
[1745718397329,3.2078,1810.2,1810.1,10.533]
[1745718397524,3.2078,1810.2,1810.1,11.63744]
[1745718397732,3.2078,1810.9,1810.3,1.10428]
[1745718398030,5.2171,1810.8,1810.4,9.72202]
[1745718398330,5.2171,1810.8,1810.5,5.123]
[1745718398526,5.2171,1810.8,1810.6,5.41]
[1745718398729,5.2171,1810.8,1810.5,5.123]
[1745718399230,5.2171,1810.8,1810.5,10.533]
[1745718399625,5.2171,1810.8,1810.5,5.123]
[1745718400026,10.3339,1810.8,1810.5,5.123]
[1745718400227,5.2171,1810.8,1810.5,6.22717]
[1745718400434,5.1168,1811.3,1810.7,3.2078]
[1745718400727,10.2642,1811.3,1810.9,4.31172]
[1745718400936,10.2642,1811.3,1811.0,5.476]
[1745718401728,5.1474,1811.3,1811.0,5.476]
[1745718401931,3.2078,1811.6,1811.1,3.2078]
[1745718402125,5.1474,1811.5,1811.2,5.476]
[1745718402629,5.1474,1811.5,1811.2,6.57976]
[1745718402829,5.1474,1811.5,1811.2,5.476]
[1745718403029,5.1474,1811.5,1811.2,6.57972]
[1745718403226,5.1474,1811.5,1811.3,1.10367]
[1745718403428,12.9492,1811.8,1811.4,5.3951]
[1745718403732,5.2276,1811.7,1811.4,5.3951]
[1745718404035,5.2276,1811.7,1811.3,8.3108]
[1745718404435,3.2078,1811.5,1811.0,8.3108]
[1745718404634,5.2276,1811.4,1811.0,8.3108]
[1745718404933,5.2276,1811.4,1811.2,1.10375]
[1745718405126,5.2276,1811.4,1811.3,1.10371]
[1745718405326,9.7414,1811.8,1811.4,1.10361]
[1745718405522,5.2338,1811.6,1811.5,4.9439]
[1745718405721,5.2338,1811.6,1811.4,5.102]
[1745718405932,3.2078,1811.5,1811.4,5.102]
[1745718407637,3.2078,1811.5,1811.1,5.102]
[1745718407832,3.2078,1811.5,1811.0,8.1517]
[1745718407833,5.2338,1811.4,1811.0,8.1517]
[1745718408040,3.2078,1811.3,1810.9,11.15906437]
[1745718408230,5.2338,1811.2,1811.0,1.10389]
[1745718408430,5.2338,1811.2,1811.0,6.04779]
[1745718408630,5.2338,1811.2,1811.0,4.9439]
[1745718408932,5.2338,1811.2,1811.0,6.04779]
[1745718409437,5.2338,1811.2,1811.0,6.04778]
[1745718409640,5.2338,1811.2,1811.0,4.9439]
[1745718410032,5.2338,1811.2,1811.0,6.04778]
[1745718410236,5.2338,1811.2,1811.0,4.9439]
[1745718410434,5.2338,1811.2,1811.1,1.10383]